bitfinex-derivatives/quotes_SOLF0:USTF0_20250703
["timestamp","ask_amount","ask_price","bid_price","bid_amount"]
[1751584883896,6.562,152.34,152.32,8.99056523]
[1751584885290,6.81929466,152.34,152.3,233.62]
[1751584885497,6.81929466,152.33,152.3,2.42796523]
[1751584885691,8.99066523,152.33,152.31,188.84]
[1751584886191,6.5627,152.33,152.31,188.84]
[1751584886697,10.95364901,152.33,152.31,188.84]
[1751584887099,10.95364901,152.33,152.3,8.99136523]
[1751584887297,10.95364901,152.33,152.3,197.83136523]
[1751584888899,10.95364901,152.33,152.3,8.99136523]
[1751584889099,10.95364901,152.33,152.31,188.84]
[1751584889399,6.5627,152.33,152.31,188.84]
[1751584892302,8.99066523,152.33,152.31,188.84]
[1751584892501,6.5628,152.32,152.31,188.84]
[1751584894599,6.5626,152.33,152.31,188.84]
[1751584894898,6.5626,152.33,152.31,191.26796523]
[1751584897304,6.5626,152.33,152.31,188.84]
[1751584898303,6.5628,152.32,152.31,188.84]
[1751584900306,10.93817244,152.33,152.31,188.84]
[1751584900507,6.5627,152.33,152.31,195.4032]
[1751584901008,6.5627,152.33,152.31,188.84]
[1751584901204,4.37559014,152.32,152.31,188.84]
[1751584902706,10.93839014,152.32,152.31,188.84]
[1751584902900,6.5628,152.32,152.31,188.84]
[1751584903098,10.93839014,152.32,152.31,188.84]
[1751584903308,6.5628,152.32,152.31,188.84]
[1751584903611,10.93839014,152.32,152.31,188.84]
[1751584903811,6.5628,152.32,152.31,188.84]
[1751584903997,10.93839014,152.32,152.31,188.84]
[1751584904201,6.5637,152.3,152.29,44.72]
[1751584904605,6.5637,152.3,152.29,233.54]
[1751584905012,6.5635,152.31,152.29,233.54]
[1751584906203,6.5637,152.3,152.29,233.54]
[1751584907414,10.89830591,152.31,152.29,233.54]
[1751584907608,6.5636,152.31,152.29,233.54]
[1751584910008,6.5636,152.31,152.29,235.96796523]
[1751584910410,8.99096523,152.32,152.29,242.53186523]
[1751584910711,10.8814699,152.32,152.29,242.53186523]
[1751584911308,6.5633,152.31,152.29,242.53186523]
[1751584912508,6.563,152.32,152.29,242.53186523]
[1751584914414,6.563,152.32,152.29,240.1039]
[1751584914615,6.563,152.32,152.29,242.53186523]
[1751584915314,6.5633,152.31,152.29,242.53186523]
[1751584916710,6.563,152.32,152.29,242.53186523]
[1751584917116,10.88210166,152.32,152.29,242.53186523]
[1751584917917,6.5634,152.31,152.3,188.84]
[1751584924225,10.8912018,152.32,152.3,197.83166523]
[1751584924428,6.75692556,152.34,152.3,191.26796523]
[1751584924730,4.32896033,152.33,152.31,2.42796523]
[1751584924922,2.42796523,152.35,152.32,188.84]
[1751584925113,4.3205023,152.34,152.32,188.84]
[1751584925313,4.3205023,152.33,152.32,188.84]
[1751584936434,4.33652642,152.33,152.32,188.84]
[1751584937537,10.89892642,152.33,152.32,188.84]
[1751584941842,4.33652642,152.33,152.32,195.4028]
[1751584942043,4.33652642,152.34,152.32,195.4028]
[1751584942243,8.98976523,152.35,152.32,195.4028]
[1751584942439,4.33603511,152.34,152.32,195.4028]
[1751584942642,8.98976523,152.35,152.32,195.4028]
[1751584942841,4.3355566,152.34,152.32,197.83076523]
[1751584943142,8.98976523,152.35,152.32,197.83076523]
[1751584943546,13.19682388,152.35,152.32,197.83076523]
[1751584943843,8.98976523,152.35,152.32,197.83076523]
[1751584944245,13.19642749,152.35,152.32,197.83076523]
[1751584944439,8.98976523,152.35,152.32,197.83076523]
[1751584944946,13.19600003,152.35,152.32,197.83076523]
[1751584945151,6.562,152.34,152.32,197.83076523]
[1751584946946,8.32653263,152.37,152.33,2.42796523]
[1751584947151,4.20550406,152.36,152.35,2.42796523]
[1751584947350,4.20550406,152.36,152.35,191.24796523]
[1751584947542,10.76640406,152.37,152.35,191.24796523]
[1751584947850,6.5609,152.37,152.36,2.42796523]
[1751584948149,10.76570391,152.37,152.35,191.24796523]
[1751584948349,4.20480391,152.36,152.35,191.24796523]
[1751584949447,6.5611,152.36,152.35,191.24796523]
[1751584952550,2.42796523,152.39,152.35,191.24796523]
[1751584952551,10.76570391,152.37,152.35,191.24796523]
[1751584952751,6.5609,152.37,152.35,191.24796523]
[1751584952942,10.76570391,152.37,152.35,191.24796523]
[1751584953146,10.76530391,152.38,152.35,191.24796523]
[1751584953352,4.20480391,152.4,152.37,2.42796523]
[1751584953552,4.20480391,152.39,152.37,2.42796523]
[1751584953753,10.76510391,152.38,152.36,8.98886523]
[1751584953951,6.5603,152.38,152.36,8.98886523]
[1751584954154,4.20480391,152.38,152.35,188.82]
[1751584954355,4.20480391,152.38,152.35,191.24796523]
[1751584954549,6.5608,152.37,152.3,2.3369]
[1751584954751,4.20480391,152.38,152.32,2.42796523]
[1751584954954,2.42796523,152.37,152.31,233.48]
[1751584955156,2.42796523,152.37,152.33,2.42796523]
[1751584955352,6.5618,152.35,152.32,8.99056523]
[1751584955660,6.5618,152.35,152.32,2.42796523]
[1751584956660,6.5618,152.35,152.33,195.3424]
[1751584957458,6.562,152.34,152.33,188.78]
[1751584957658,6.562,152.34,152.31,47.12796523]
[1751584957849,6.562,152.34,152.32,188.78]
[1751584958558,6.562,152.34,152.31,53.69106523]
[1751584958757,6.562,152.34,152.32,188.78]
[1751584960255,6.5617,152.35,152.32,191.20796523]
[1751584961660,6.5617,152.35,152.33,6.5624]
[1751584961857,6.5613,152.36,152.33,8.99036523]
[1751584962162,10.78813762,152.36,152.34,6.5619]
[1751584964465,10.77150043,152.38,152.36,6.5609]
[1751584964662,10.77150043,152.38,152.36,8.98664767]
[1751584964956,6.5607,152.38,152.36,8.98664767]
[1751584965258,6.5607,152.38,152.36,8.98572447]
[1751584965564,6.5601,152.39,152.36,8.98572447]
[1751584969063,6.5603,152.38,152.36,8.98572447]
[1751584969263,6.5603,152.38,152.36,6.5609]
[1751584978571,6.5603,152.38,152.36,8.98572447]
[1751584981267,6.5603,152.38,152.36,6.5609]
[1751584982972,8.98482447,152.39,152.37,6.5607]
[1751584983272,6.56,152.39,152.37,6.5607]
[1751584983472,6.5603,152.38,152.37,6.5607]
[1751584984375,6.5609,152.37,152.35,188.78]
[1751584984669,8.98572447,152.37,152.35,188.78]
[1751584985575,8.98572447,152.37,152.35,195.3412]
[1751584986775,6.5609,152.37,152.35,195.3412]
[1751584988776,6.66273735,152.38,152.35,195.3412]
[1751584988977,2.42482447,152.38,152.35,195.3412]
[1751584989179,6.66273735,152.38,152.35,195.3412]
[1751584989381,2.42482447,152.38,152.35,195.3412]
[1751584989580,6.66273735,152.38,152.35,195.3412]
[1751584989780,2.42482447,152.38,152.35,195.3412]
[1751584989982,6.66273735,152.38,152.35,195.3412]
[1751584990185,8.98512447,152.38,152.35,195.3412]
[1751584990484,13.22303735,152.38,152.35,195.3412]
[1751584990682,8.98512447,152.38,152.35,195.3412]
[1751584991184,13.22375229,152.38,152.35,197.76602447]
[1751584991385,8.98512447,152.38,152.35,197.76602447]
[1751584991780,13.22416096,152.38,152.35,197.76602447]
[1751584991980,8.98512447,152.38,152.35,197.76602447]
[1751584992380,13.22416096,152.38,152.35,197.76602447]
[1751584992678,8.98512447,152.38,152.35,197.76602447]
[1751584993177,13.22435693,152.38,152.35,197.76602447]
[1751584993375,8.98512447,152.38,152.35,197.76602447]
[1751584993786,13.19951095,152.38,152.35,197.76602447]
[1751584993989,8.98512447,152.38,152.35,197.76602447]
[1751584994386,10.77468648,152.38,152.35,197.76602447]
[1751584997592,6.5607,152.37,152.35,197.76602447]
[1751585001392,6.5607,152.37,152.35,195.3412]
[1751585001592,6.5607,152.37,152.35,197.76602447]
[1751585002298,6.5607,152.37,152.35,195.3412]
[1751585002497,6.5607,152.37,152.35,197.76602447]
[1751585002898,6.5607,152.37,152.35,195.3412]
[1751585003092,6.5607,152.37,152.35,197.76602447]
[1751585005599,10.7777361,152.37,152.35,197.76602447]
[1751585005796,6.5607,152.37,152.35,197.76602447]
[1751585005995,10.7777361,152.37,152.35,197.76602447]
[1751585006195,10.7775361,152.38,152.36,6.561]
[1751585006396,6.5605,152.38,152.36,8.98582447]
[1751585006798,10.77937434,152.38,152.36,8.98582447]
[1751585006999,6.5605,152.38,152.36,8.98582447]
[1751585007199,4.21887434,152.38,152.37,6.5607]
[1751585009903,4.21887434,152.38,152.36,2.42482447]
[1751585009904,10.77917434,152.38,152.36,8.98572447]
[1751585010103,6.5603,152.38,152.36,6.5609]
[1751585010304,2.42482447,152.39,152.35,188.78]
[1751585010500,6.5609,152.37,152.35,188.78]
[1751585011205,6.5619,152.35,152.33,44.68]
[1751585011407,4.21985823,152.35,152.33,233.4]
[1751585011603,4.21985826,152.35,152.33,233.4]
[1751585011805,6.5618,152.35,152.33,233.4]
[1751585012908,6.5618,152.35,152.33,44.68]
[1751585013304,10.78765426,152.35,152.33,44.68]
[1751585014311,13.21247873,152.35,152.33,44.68]
[1751585014614,8.98662447,152.35,152.33,44.68]
[1751585015008,13.21167936,152.35,152.33,44.68]
[1751585015311,8.98662447,152.35,152.33,44.68]
[1751585015905,10.78620851,152.35,152.33,44.68]
[1751585016414,6.562,152.34,152.33,44.68]
[1751585016809,6.562,152.34,152.32,191.14482447]
[1751585017409,6.562,152.34,152.32,188.72]
[1751585017715,2.42482447,152.33,152.3,188.72]
[1751585017918,2.42482447,152.32,152.29,44.68]
[1751585018217,6.5637,152.3,152.29,233.52]
[1751585018404,10.32720537,152.35,152.29,233.52]
[1751585018405,4.22390103,152.34,152.29,233.52]
[1751585018605,2.42482447,152.32,152.29,44.68]
[1751585018808,6.5635,152.31,152.29,233.52]
[1751585019416,6.5635,152.31,152.29,233.56]
[1751585019612,6.5635,152.31,152.29,44.68]
[1751585020018,6.5635,152.31,152.29,240.2241]
[1751585020320,6.5635,152.31,152.29,233.66]
[1751585023520,2.42482447,152.32,152.29,233.66]
[1751585025520,2.42482447,152.32,152.29,44.68]
[1751585025722,2.42482447,152.32,152.29,233.78]
[1751585026020,6.5637,152.3,152.29,233.78]
[1751585027720,2.42482447,152.3,152.26,2.3217]
[1751585027912,2.42482447,152.3,152.27,189.08]
[1751585028215,6.5645,152.29,152.27,189.08]
[1751585028615,2.42482447,152.3,152.27,189.14]
[1751585029524,6.5646,152.28,152.27,189.14]
[1751585030420,6.5646,152.28,152.27,189.12]
[1751585031824,6.5646,152.28,152.26,8.99002447]
[1751585032125,6.5646,152.28,152.27,189.12]
[1751585032424,2.42482447,152.31,152.27,191.54482447]
[1751585032624,53.08550434,152.35,152.27,189.12]
[1751585032827,2.42482447,152.3,152.27,191.54482447]
[1751585033426,6.5644,152.29,152.27,191.54482447]
[1751585033620,6.5644,152.29,152.27,189.12]
[1751585033924,6.5644,152.29,152.26,8.99002447]
[1751585034323,6.5644,152.29,152.27,189.26]
[1751585035622,6.5644,152.29,152.27,191.68482447]
[1751585036023,6.5644,152.29,152.27,198.24982447]
[1751585036223,6.5644,152.29,152.27,191.68482447]
[1751585040127,6.5644,152.29,152.27,2.42482447]
[1751585041126,6.5644,152.29,152.26,195.7652]
[1751585041328,6.5644,152.29,152.27,2.42482447]
[1751585041824,6.5646,152.28,152.26,195.7652]
[1751585042129,6.5646,152.28,152.27,2.42482447]
[1751585042828,6.5646,152.28,152.25,51.2457]
[1751585043029,6.5646,152.28,152.26,191.60482447]
[1751585044131,6.5646,152.28,152.26,189.18]
[1751585044331,6.5646,152.28,152.26,191.60482447]
[1751585044929,2.42482447,152.29,152.25,44.68]
[1751585045131,53.08550434,152.35,152.23,2.42482447]
[1751585045132,2.42482447,152.27,152.23,2.42482447]
[1751585045326,6.10330434,152.33,152.26,2.42482447]
[1751585045531,6.5648,152.28,152.26,2.42482447]
[1751585045831,6.10330434,152.34,152.27,2.42482447]
[1751585046129,2.42482447,152.34,152.3,2.42482447]
[1751585046327,2.42482447,152.36,152.32,2.42482447]
[1751585046527,6.5623,152.34,152.3,6.5634]
[1751585046823,2.42482447,152.35,152.29,189.46]
[1751585047023,2.42482447,152.34,152.29,189.46]
[1751585047228,6.5627,152.33,152.3,2.42482447]
[1751585047429,6.5627,152.33,152.29,196.0237]
[1751585047631,6.5627,152.33,152.3,2.42482447]
[1751585048933,6.5627,152.33,152.31,2.42482447]
[1751585050629,2.2528,152.38,152.32,2.42482447]
[1751585050834,2.42482447,152.36,152.32,2.42482447]
[1751585051234,2.42482447,152.36,152.32,8.98752447]
[1751585052240,6.5619,152.35,152.32,8.98752447]
[1751585054437,6.562,152.35,152.32,8.98752447]
[1751585055835,4.19523941,152.37,152.36,6.5611]
[1751585056140,4.19523941,152.39,152.36,2.42482447]
[1751585056439,6.5599,152.39,152.37,8.98524896]
[1751585056640,10.75513941,152.39,152.37,8.98524896]
[1751585056848,4.19523941,152.39,152.37,2.42454896]
[1751585057043,12.66290434,152.4,152.37,8.98504896]
[1751585057338,4.19523941,152.39,152.38,2.42454896]
[1751585057536,10.75503941,152.39,152.38,2.42436242]
[1751585057735,4.19523941,152.39,152.36,2.42436242]
[1751585058142,6.5605,152.38,152.36,2.42436242]
[1751585058538,2.42436242,152.39,152.35,191.82436242]
[1751585058734,2.42436242,152.38,152.34,2.42436242]
[1751585059043,2.42436242,152.36,152.32,191.86436242]
[1751585059639,6.5618,152.35,152.32,198.42686242]
[1751585060142,8.98566242,152.36,152.33,6.5624]
[1751585060538,6.5613,152.36,152.33,6.5624]
[1751585061539,4.74806242,152.39,152.35,2.42436242]
[1751585061740,6.10330434,152.4,152.34,3.78915092]
[1751585061741,4.2757812,152.4,152.34,3.78915092]
[1751585062341,4.2757812,152.4,152.34,10.35075092]
[1751585062740,4.27473787,152.4,152.34,10.35075092]
[1751585062936,6.5609,152.37,152.34,10.35075092]
[1751585064441,6.5609,152.37,152.34,6.5616]
[1751585067051,47.1363,152.41,152.35,6.5614]
[1751585067250,4.27446736,152.4,152.35,6.5614]
[1751585067444,6.5607,152.38,152.35,6.5614]
[1751585068450,6.5607,152.38,152.36,6.5611]
[1751585068644,6.5607,152.38,152.33,3.78915092]
[1751585069150,6.5607,152.37,152.35,6.5613]
[1751585071650,4.27446736,152.4,152.35,3.78915092]
[1751585071850,6.55699339,152.42,152.35,3.78915092]
[1751585072248,3.78915092,152.41,152.34,3.78915092]
[1751585073056,6.5606,152.38,152.35,6.5613]
[1751585073258,8.06894431,152.41,152.35,6.5613]
[1751585073450,3.78915092,152.41,152.35,6.5613]
[1751585075762,6.5605,152.38,152.35,6.5613]
[1751585075964,8.06766453,152.41,152.34,10.35095092]
[1751585076264,6.5609,152.37,152.34,10.35095092]
[1751585077767,6.5609,152.37,152.35,6.5614]
[1751585080366,6.5604,152.38,152.36,6.5611]
[1751585080571,6.55571361,152.42,152.34,3.78915092]
[1751585081261,6.5601,152.39,152.36,6.5609]
[1751585083068,4.2894851,152.42,152.36,48.70915092]
[1751585083266,53.27290434,152.45,152.38,3.78915092]
[1751585083462,4.29018205,152.44,152.38,3.78915092]
[1751585083867,6.5592,152.41,152.38,10.34895092]
[1751585085574,6.5592,152.41,152.39,6.5598]
[1751585089974,4.31527668,152.44,152.4,3.78915092]
[1751585090175,4.31527668,152.46,152.4,3.78915092]
[1751585090374,4.31527668,152.45,152.4,3.78915092]
[1751585090572,6.5587,152.42,152.4,199.56835092]
[1751585091272,6.5583,152.43,152.41,6.559]
[1751585091976,6.5579,152.44,152.42,6.5585]
[1751585092171,4.31527668,152.46,152.42,3.78915092]
[1751585092472,6.5575,152.45,152.42,10.34735092]
[1751585093279,6.5578,152.44,152.42,10.34735092]
[1751585097474,6.5575,152.45,152.43,6.5581]
[1751585097875,6.5575,152.45,152.44,189.06]
[1751585102484,6.557,152.46,152.44,189.06]
[1751585102678,6.557,152.46,152.44,199.40675092]
[1751585103181,4.31486118,152.49,152.45,3.78915092]
[1751585103380,4.31486118,152.51,152.45,3.78915092]
[1751585103575,4.31486118,152.51,152.44,195.6174]
[1751585103884,3.78915092,152.5,152.44,199.40655092]
[1751585104383,6.5567,152.47,152.44,199.40655092]
[1751585105980,3.78915092,152.5,152.44,3.78915092]
[1751585106177,3.78915092,152.46,152.4,3.78915092]
[1751585106383,3.78915092,152.46,152.41,188.96]
[1751585106887,6.5585,152.43,152.4,199.44835092]
[1751585107687,6.5585,152.43,152.41,6.559]
[1751585107886,6.5585,152.43,152.4,192.88915092]
[1751585108488,6.5585,152.43,152.4,199.44825092]
[1751585109987,6.5585,152.43,152.41,6.5589]
[1751585110189,6.5576,152.45,152.4,192.88915092]
[1751585110490,4.7147,152.47,152.42,10.34745092]
[1751585111685,6.5579,152.44,152.42,10.34745092]
[1751585112889,6.5579,152.44,152.42,3.78915092]
[1751585113985,4.7147,152.47,152.4,195.6592]
[1751585114189,4.7147,152.47,152.4,192.88915092]
[1751585114586,9.05884209,152.47,152.4,192.88915092]
[1751585114783,6.5583,152.43,152.41,6.5588]
[1751585116084,6.5583,152.43,152.42,189.0]
[1751585119192,6.5578,152.44,152.42,189.0]
[1751585119791,6.5578,152.44,152.43,2.42282582]
[1751585119984,7.13752582,152.47,152.43,2.42282582]
[1751585120184,7.13752582,152.47,152.44,2.42282582]
[1751585120384,4.7147,152.47,152.44,2.42282582]
[1751585121187,7.13752582,152.47,152.43,2.42282582]
[1751585121686,6.5575,152.45,152.43,8.98092582]
[1751585121882,6.5575,152.45,152.43,6.5581]
[1751585122091,6.5575,152.45,152.42,199.34345843]
[1751585125194,6.5575,152.45,152.43,6.5581]
[1751585127193,6.557,152.46,152.44,6.5577]
[1751585132088,6.557,152.46,152.43,6.5579]
[1751585132292,6.5574,152.45,152.42,192.78515843]
[1751585132693,6.5574,152.45,152.42,199.34335843]
[1751585133393,6.5574,152.45,152.43,6.5581]
[1751585135402,6.5574,152.45,152.42,199.34345843]
[1751585137502,6.5574,152.45,152.42,10.34345843]
[1751585137800,9.88846277,152.48,152.43,188.76]
[1751585138001,4.37995093,152.47,152.43,188.76]
[1751585138301,9.88846277,152.48,152.41,195.3189]
[1751585138302,6.5581,152.44,152.41,195.3189]
[1751585142001,6.5581,152.44,152.42,6.5584]
[1751585142506,6.5581,152.44,152.42,195.3184]
[1751585143912,6.5581,152.44,152.43,2.42267884]
[1751585144110,6.5575,152.45,152.43,2.42267884]
[1751585145308,10.8007834,152.45,152.43,2.42267884]
[1751585145609,6.5575,152.45,152.43,2.42267884]
[1751585145801,10.8007834,152.45,152.43,2.42267884]
[1751585146004,6.5575,152.45,152.43,2.42267884]
[1751585146210,10.8007834,152.45,152.43,8.98067884]
[1751585146407,10.8001834,152.46,152.44,2.42267884]
[1751585146614,4.24237926,152.45,152.42,188.76]
[1751585146812,4.24237926,152.46,152.44,2.42267884]
[1751585147012,4.24237926,152.45,152.44,2.42267884]
[1751585147218,4.24237926,152.46,152.44,2.42267884]
[1751585147417,4.24237926,152.45,152.43,2.42267884]
[1751585147617,6.5575,152.45,152.43,8.98057884]
[1751585153723,6.5575,152.45,152.43,2.42267884]
[1751585163329,6.5575,152.45,152.43,2.42257124]
[1751585166134,8.531739,152.47,152.4,6.5592]
[1751585166336,8.531739,152.45,152.4,44.7]
[1751585166534,6.66802922,152.44,152.41,188.74]
[1751585166733,10.80294759,152.43,152.41,188.74]
[1751585166935,6.5584,152.43,152.41,188.74]
[1751585167430,2.42348163,152.43,152.4,44.7]
[1751585167632,2.3013,152.48,152.41,188.74]
[1751585167633,6.66603823,152.42,152.41,188.74]
[1751585168034,6.5598,152.4,152.37,11.15088163]
[1751585168336,6.67230361,152.41,152.38,188.74]
[1751585168632,6.67230361,152.41,152.37,2.42348163]
[1751585168633,6.5597,152.4,152.37,8.98408163]
[1751585168836,6.5597,152.4,152.38,188.76]
[1751585169731,6.5597,152.4,152.39,188.76]
[1751585172036,6.5597,152.4,152.37,8.98408163]
[1751585172238,6.5597,152.4,152.38,188.76]
[1751585174936,6.5597,152.4,152.37,8.98408163]
[1751585175142,2.42348163,152.41,152.38,188.78]
[1751585175338,2.42348163,152.41,152.39,188.78]
[1751585175939,6.56,152.39,152.37,8.98408163]
[1751585176240,6.56,152.39,152.38,188.78]
[1751585176942,6.5596,152.4,152.38,188.78]
[1751585177743,6.5596,152.4,152.38,195.3401]
[1751585178043,6.5596,152.4,152.38,188.78]
[1751585178940,6.5596,152.4,152.38,191.20348163]
[1751585179743,6.5596,152.4,152.38,197.76368163]
[1751585181037,2.42348163,152.42,152.38,197.76368163]
[1751585181038,6.5591,152.41,152.38,197.76368163]
[1751585181642,6.5591,152.41,152.39,8.98318163]
[1751585181949,6.5587,152.42,152.4,2.42348163]
[1751585182246,2.42348163,152.44,152.41,191.20348163]
[1751585182446,6.5585,152.42,152.41,188.78]
[1751585183549,2.42348163,152.42,152.41,188.78]
[1751585184249,8.98198163,152.42,152.41,188.78]
[1751585194657,6.5585,152.42,152.41,188.78]
[1751585197056,6.559,152.41,152.39,8.98318163]
[1751585197259,6.559,152.41,152.4,188.76]
[1751585212558,10.76413799,152.42,152.4,188.76]
[1751585212864,6.5587,152.42,152.4,191.18348163]
[1751585213063,10.76413799,152.42,152.4,191.18348163]
[1751585215256,10.76413799,152.42,152.4,188.76]
[1751585217865,10.76413799,152.42,152.4,191.18348163]
[1751585218061,8.52776395,152.44,152.41,2.42348163]
[1751585218062,6.10428232,152.44,152.41,2.42348163]
[1751585218267,4.21427825,152.45,152.42,2.42348163]
[1751585218564,6.5579,152.44,152.43,188.72]
[1751585221677,10.77067846,152.45,152.43,188.72]
[1751585222268,6.5577,152.44,152.43,188.72]
[1751585229881,6.5577,152.44,152.43,191.14348163]
[1751585235085,6.5574,152.45,152.43,197.70158163]
[1751585235288,6.5574,152.45,152.44,2.42348163]
[1751585235588,4.23602874,152.48,152.44,8.98088163]
[1751585235589,6.5569,152.46,152.44,8.98088163]
[1751585235778,6.5569,152.46,152.45,2.42348163]
[1751585235980,2.42348163,152.49,152.45,2.42348163]
[1751585236182,6.5566,152.47,152.45,8.98048163]
[1751585238792,6.5566,152.47,152.45,2.42348163]
[1751585239194,6.5568,152.46,152.45,2.42348163]
[1751585240897,2.42348163,152.47,152.43,188.72]
[1751585241098,2.42348163,152.47,152.43,191.14348163]
[1751585241393,6.5574,152.45,152.43,191.14348163]
[1751585242096,6.557,152.46,152.43,197.70158163]
[1751585242497,2.42348163,152.47,152.43,197.70158163]
[1751585242692,6.5572,152.46,152.43,197.70158163]
[1751585243091,2.42348163,152.46,152.43,188.72]
[1751585243300,6.5577,152.44,152.42,2.42348163]
[1751585243595,2.42348163,152.45,152.41,8.98248163]
[1751585243796,2.42348163,152.45,152.42,188.62]
[1751585244297,6.5579,152.44,152.42,188.62]
[1751585244591,2.42348163,152.43,152.4,44.66]
[1751585244894,2.42348163,152.41,152.37,103.56274863]
[1751585245095,2.42348163,152.38,152.36,44.66]
[1751585245291,2.42348163,152.37,152.36,44.66]
[1751585245696,8.98418163,152.37,152.36,44.66]
[1751585246393,2.42348163,152.37,152.36,44.66]
[1751585247803,8.98388163,152.38,152.36,44.66]
[1751585248797,6.5604,152.38,152.36,44.66]
[1751585250103,8.98348163,152.39,152.36,51.2211]
[1751585251703,8.98348163,152.39,152.36,53.64458163]
[1751585252001,6.56,152.39,152.37,2.42348163]
[1751585252599,6.56,152.39,152.36,53.64458163]
[1751585253504,53.08698232,152.45,152.38,2.42348163]
[1751585253704,2.42348163,152.43,152.39,2.42348163]
[1751585254008,6.5592,152.41,152.39,2.42348163]
[1751585254404,2.42348163,152.43,152.39,2.42348163]
[1751585254704,6.5589,152.42,152.39,8.98328163]
[1751585255100,6.559,152.41,152.39,8.98328163]
[1751585255507,6.559,152.41,152.39,2.42348163]
[1751585258509,6.559,152.41,152.38,195.24]
[1751585258811,6.559,152.41,152.39,2.42348163]
[1751585261411,6.5594,152.4,152.39,2.42348163]
[1751585263514,6.5592,152.41,152.39,2.42348163]
[1751585267515,6.5592,152.41,152.38,197.66348163]
[1751585272718,6.5592,152.41,152.38,195.24]
[1751585273016,6.5592,152.41,152.38,197.66348163]
[1751585275123,6.5594,152.4,152.38,197.66348163]
[1751585276025,6.5594,152.4,152.38,195.24]
[1751585276521,6.5594,152.4,152.38,197.66348163]
[1751585277823,6.5594,152.4,152.38,195.24]
[1751585287530,6.5598,152.39,152.38,188.68]
[1751585289438,6.5595,152.4,152.38,188.68]
[1751585293038,6.5595,152.4,152.37,8.9846777]
[1751585293239,6.5595,152.4,152.38,188.6]
[1751585301440,2.4241777,152.39,152.36,44.66]
[1751585301644,2.4241777,152.38,152.37,188.6]
[1751585302144,8.9846777,152.38,152.37,188.6]
[1751585303435,2.4241777,152.39,152.37,188.6]
[1751585304744,6.5603,152.38,152.37,188.6]
[1751585305943,6.5601,152.39,152.37,188.6]
[1751585306242,8.9842777,152.39,152.37,188.6]
[1751585306444,6.5603,152.38,152.37,188.6]
[1751585308242,8.9841777,152.39,152.37,188.6]
[1751585309043,8.9841777,152.39,152.36,51.2209]
[1751585309044,6.5603,152.38,152.36,51.2209]
[1751585309246,6.5603,152.38,152.37,188.6]
[1751585310043,6.5603,152.38,152.36,44.66]
[1751585310243,6.5603,152.38,152.37,188.58]
[1751585312743,2.4241777,152.4,152.37,195.1405]
[1751585314547,6.5599,152.39,152.37,195.1405]
[1751585322059,6.56,152.39,152.37,195.1406]
[1751585322261,2.4241777,152.41,152.37,188.58]
[1751585322759,6.5601,152.39,152.37,188.58]
[1751585324563,6.5601,152.39,152.37,195.1407]
[1751585342282,6.5603,152.38,152.37,188.58]
[1751585343177,6.56,152.39,152.37,188.58]
[1751585344684,6.56,152.39,152.37,195.1406]
[1751585349791,6.56,152.39,152.37,197.56534583]
[1751585357494,6.56,152.39,152.37,191.00474583]
[1751585359297,6.56,152.39,152.37,188.58]
[1751585362002,6.56,152.39,152.37,191.00474583]
[1751585362404,6.56,152.39,152.37,188.58]
[1751585364803,6.56,152.39,152.37,195.1407]
[1751585365906,6.5596,152.4,152.37,195.1407]
[1751585366212,6.5596,152.4,152.38,8.98494583]
[1751585366406,6.10428232,152.41,152.39,2.42474583]
[1751585366613,6.10428232,152.43,152.4,190.90474583]
[1751585367510,8.52902815,152.44,152.4,190.90474583]
[1751585367805,6.5582,152.43,152.41,2.42474583]
[1751585368510,6.5579,152.44,152.42,2.42474583]
[1751585368716,6.5579,152.44,152.43,2.42474583]
[1751585370814,6.5579,152.44,152.42,2.42474583]
[1751585371210,6.5579,152.44,152.43,2.42474583]
[1751585372911,6.5583,152.43,152.42,2.42474583]
[1751585384922,6.5583,152.43,152.41,6.5589]
[1751585385213,6.5583,152.43,152.42,2.42474583]